Workbook

Sheet DigitalTwin
A1: Parameter | B1: Value | C1: Comment/Formula
A2: C_PM | B2: 7000 | C2: Prev. maint. cost | J2: Tau | K2: PM-Cost | L2: Failure-Cost | M2: Total-Cost
A3: C_EP | B3: 25000 | C3: Expected prod. loss | J3: =60 -> 60 | K3: =C_PM/J3 -> 116.6666667 | L3: =(_xlfn.GAMMA(1+1/alpha)/MTTF)^alpha*J3^(alpha-1)*C_U -> 28.69882321 | M3: =K3+L3 -> 145.3654899
A4: C_CM | B4: 35000 | C4: Corr. maint. cost | J4: =J3+5 -> 65 | K4: =C_PM/J4 -> 107.6923077 | L4: =(_xlfn.GAMMA(1+1/alpha)/MTTF)^alpha*J4^(alpha-1)*C_U -> 33.68125779 | M4: =K4+L4 -> 141.3735655
A5: alpha | B5: 3 | C5: Ageing parameter | J5: =J4+5 -> 70 | K5: =C_PM/J5 -> 100 | L5: =(_xlfn.GAMMA(1+1/alpha)/MTTF)^alpha*J5^(alpha-1)*C_U -> 39.06228714 | M5: =K5+L5 -> 139.0622871
A6: MTTF | B6: 175 | C6: MTTF without maint. | J6: =J5+5 -> 75 | K6: =C_PM/J6 -> 93.33333333 | L6: =(_xlfn.GAMMA(1+1/alpha)/MTTF)^alpha*J6^(alpha-1)*C_U -> 44.84191126 | M6: =K6+L6 -> 138.1752446
A7: C_U | B7: =C_EP+C_CM -> 60000 | C7: =_xlfn.FORMULATEXT(B7) -> =C_EP+C_CM | J7: =J6+5 -> 80 | K7: =C_PM/J7 -> 87.5 | L7: =(_xlfn.GAMMA(1+1/alpha)/MTTF)^alpha*J7^(alpha-1)*C_U -> 51.02013014 | M7: =K7+L7 -> 138.5201301
A8: lambdaE | B8: =(_xlfn.GAMMA(1+1/alpha)/MTTF)^alpha*tau_opt^(alpha-1) -> 0.0007675051681 | C8: =_xlfn.FORMULATEXT(B8) -> =(GAMMA(1+1/alpha)/MTTF)^alpha*tau_opt^(alpha-1) | J8: =J7+5 -> 85 | K8: =C_PM/J8 -> 82.35294118 | L8: =(_xlfn.GAMMA(1+1/alpha)/MTTF)^alpha*J8^(alpha-1)*C_U -> 57.5969438 | M8: =K8+L8 -> 139.949885
A9: Analytical | B9: =MTTF/_xlfn.GAMMA(1+1/alpha)*(C_PM/((alpha-1)*C_U))^(1/alpha) -> 76.00383132 | C9: =_xlfn.FORMULATEXT(B9) -> =MTTF/GAMMA(1+1/alpha)*(C_PM/((alpha-1)*C_U))^(1/alpha) | J9: =J8+5 -> 90 | K9: =C_PM/J9 -> 77.77777778 | L9: =(_xlfn.GAMMA(1+1/alpha)/MTTF)^alpha*J9^(alpha-1)*C_U -> 64.57235221 | M9: =K9+L9 -> 142.35013
A10: C(tau) | B10: =C_PM/tau_opt+lambdaE*C_U -> 138.1509303 | C10: =_xlfn.FORMULATEXT(B10) -> =C_PM/tau_opt+lambdaE*C_U | J10: =J9+5 -> 95 | K10: =C_PM/J10 -> 73.68421053 | L10: =(_xlfn.GAMMA(1+1/alpha)/MTTF)^alpha*J10^(alpha-1)*C_U -> 71.9463554 | M10: =K10+L10 -> 145.6305659
J11: =J10+5 -> 100 | K11: =C_PM/J11 -> 70 | L11: =(_xlfn.GAMMA(1+1/alpha)/MTTF)^alpha*J11^(alpha-1)*C_U -> 79.71895335 | M11: =K11+L11 -> 149.7189534
J12: =J11+5 -> 105 | K12: =C_PM/J12 -> 66.66666667 | L12: =(_xlfn.GAMMA(1+1/alpha)/MTTF)^alpha*J12^(alpha-1)*C_U -> 87.89014607 | M12: =K12+L12 -> 154.5568127
J13: =J12+5 -> 110 | K13: =C_PM/J13 -> 63.63636364 | L13: =(_xlfn.GAMMA(1+1/alpha)/MTTF)^alpha*J13^(alpha-1)*C_U -> 96.45993355 | M13: =K13+L13 -> 160.0962972
L14: Minimum= | M14: =MIN(M3:M13) -> 138.1752446
A31: tau | B31: 90.96267388
